[Event "Early-Titled-Tuesday-Blitz-April-02-2024"]
[Site "Chess.com"]
[Date "2024.04.02"]
[Round "2"]
[White "Predator0608"]
[Black "Korchmar_Vasiliy"]
[Result "0-1"]
[WhiteElo "2543"]
[BlackElo "2722"]
[TimeControl "180+1"]
[EndTime "8:19:56 PDT"]
[Termination "Korchmar_Vasiliy won by resignation"]

1. e4 {[%clk 0:03:00.9]} 1... c5 {[%clk 0:02:59.2]} 2. Nf3 {[%clk 0:03:00.9]}
2... d6 {[%clk 0:02:59.4]} 3. d4 {[%clk 0:03:01]} 3... cxd4 {[%clk 0:03:00.3]}
4. Nxd4 {[%clk 0:03:01.9]} 4... Nf6 {[%clk 0:03:00.9]} 5. Nc3 {[%clk 0:03:02.5]}
5... Nc6 {[%clk 0:03:01.3]} 6. Bg5 {[%clk 0:03:02.4]} 6... Bd7 {[%clk 0:03:01]}
7. Qd2 {[%clk 0:03:01]} 7... a6 {[%clk 0:03:01]} 8. O-O-O {[%clk 0:02:58.8]}
8... e6 {[%clk 0:03:01.3]} 9. f4 {[%clk 0:02:58.8]} 9... Be7 {[%clk 0:03:00.8]}
10. Nf3 {[%clk 0:02:57.8]} 10... b5 {[%clk 0:03:01.1]} 11. Bxf6 {[%clk
0:02:56.7]} 11... gxf6 {[%clk 0:03:00.9]} 12. f5 {[%clk 0:02:54.9]} 12... Qb6
{[%clk 0:03:00.1]} 13. Kb1 {[%clk 0:02:55]} 13... O-O-O {[%clk 0:02:56.9]} 14.
g3 {[%clk 0:02:55.3]} 14... Kb8 {[%clk 0:02:55.7]} 15. Bh3 {[%clk 0:02:52.3]}
15... Ne5 {[%clk 0:02:45.4]} 16. Nd4 {[%clk 0:02:44.2]} 16... d5 {[%clk
0:02:17.4]} 17. exd5 {[%clk 0:02:12.7]} 17... b4 {[%clk 0:02:09.6]} 18. Nce2
{[%clk 0:02:09.8]} 18... exd5 {[%clk 0:02:07.9]} 19. Nf4 {[%clk 0:02:09.5]}
19... Bc8 {[%clk 0:01:43.6]} 20. Bg2 {[%clk 0:02:01.4]} 20... Bb7 {[%clk
0:01:43.9]} 21. Rhe1 {[%clk 0:02:01.8]} 21... Rd7 {[%clk 0:01:40.6]} 22. Nf3
{[%clk 0:01:34.2]} 22... Nc4 {[%clk 0:01:34.4]} 23. Qd3 {[%clk 0:01:33.1]} 23...
Bc5 {[%clk 0:01:24]} 24. Re2 {[%clk 0:01:06.8]} 24... Rc8 {[%clk 0:01:19.1]} 25.
Rde1 {[%clk 0:01:04.3]} 25... a5 {[%clk 0:01:14.8]} 26. Re8 {[%clk 0:01:00.6]}
26... Rxe8 {[%clk 0:01:10.4]} 27. Rxe8+ {[%clk 0:01:01.1]} 27... Ka7 {[%clk
0:01:11.2]} 28. Nd2 {[%clk 0:00:51.9]} 28... Ne5 {[%clk 0:00:59]} 29. Qe2 {[%clk
0:00:31.4]} 29... a4 {[%clk 0:00:50.6]} 30. Nf3 {[%clk 0:00:26.1]} 30... Ba6
{[%clk 0:00:41.3]} 31. Qe1 {[%clk 0:00:24.9]} 31... Nc4 {[%clk 0:00:41.7]} 32.
Nd2 {[%clk 0:00:25.1]} 32... Ne3 {[%clk 0:00:28.6]} 33. Bf3 {[%clk 0:00:19.3]}
33... Bb7 {[%clk 0:00:16.2]} 34. Qe2 {[%clk 0:00:18.3]} 34... Bd4 {[%clk
0:00:08.8]} 35. Nf1 {[%clk 0:00:18.4]} 35... Nxf5 {[%clk 0:00:07.5]} 36. Qd2
{[%clk 0:00:16.7]} 36... Be5 {[%clk 0:00:06.1]} 37. Nxd5 {[%clk 0:00:16.5]}
37... Qc5 {[%clk 0:00:06.3]} 38. g4 {[%clk 0:00:09.6]} 38... Nd4 {[%clk
0:00:03.8]} 39. Be4 {[%clk 0:00:07.8]} 39... Nb5 {[%clk 0:00:03.7]} 40. Nfe3
{[%clk 0:00:08.6]} 40... a3 {[%clk 0:00:02.7]} 41. bxa3 {[%clk 0:00:08]} 41...
Nxa3+ {[%clk 0:00:02.8]} 42. Kc1 {[%clk 0:00:07.8]} 42... Nc4 {[%clk 0:00:03.5]}
43. Nxc4 {[%clk 0:00:07.7]} 43... Qxc4 {[%clk 0:00:04.4]} 44. Qxb4 {[%clk
0:00:07.6]} 44... Qxb4 {[%clk 0:00:04.2]} 45. Nxb4 {[%clk 0:00:08.5]} 45... Bxe4
{[%clk 0:00:04.9]} 46. c4 {[%clk 0:00:09]} 46... Bf4+ {[%clk 0:00:04.9]} 47. Kb2
{[%clk 0:00:09.4]} 47... Be5+ {[%clk 0:00:05.3]} 48. Kb3 {[%clk 0:00:09.6]}
48... Kb7 {[%clk 0:00:04]} 49. a4 {[%clk 0:00:09.2]} 49... Rd1 {[%clk
0:00:04.1]} 50. a5 {[%clk 0:00:08.4]} 50... Rb1+ {[%clk 0:00:03.9]} 51. Ka4
{[%clk 0:00:08.8]} 51... Bc6+ {[%clk 0:00:03]} 52. Nxc6 {[%clk 0:00:08.5]} 52...
Kxc6 {[%clk 0:00:03.9]} 53. Rc8+ {[%clk 0:00:08.8]} 53... Kd7 {[%clk 0:00:03.9]}
54. Rf8 {[%clk 0:00:09.4]} 54... Ke7 {[%clk 0:00:03.8]} 55. Rh8 {[%clk
0:00:09.9]} 55... Bxh2 {[%clk 0:00:03.9]} 56. a6 {[%clk 0:00:09.3]} 56... Ra1+
{[%clk 0:00:03.4]} 57. Kb5 {[%clk 0:00:09.2]} 57... Bc7 {[%clk 0:00:02.1]} 58.
Rxh7 {[%clk 0:00:08.9]} 58... Ra5+ {[%clk 0:00:01.8]} 59. Kc6 {[%clk 0:00:08.8]}
59... Rxa6+ {[%clk 0:00:02.1]} 60. Kxc7 {[%clk 0:00:09.1]} 60... Ra5 {[%clk
0:00:01.9]} 61. Kb6 {[%clk 0:00:08.8]} 61... Rg5 {[%clk 0:00:01.7]} 62. Rh4
{[%clk 0:00:08.2]} 62... Kd6 {[%clk 0:00:02.1]} 63. Rh6 {[%clk 0:00:06.8]} 63...
Rxg4 {[%clk 0:00:02.2]} 64. Rxf6+ {[%clk 0:00:07]} 64... Ke7 {[%clk 0:00:03]}
65. Rf2 {[%clk 0:00:07]} 65... Rxc4 {[%clk 0:00:02.8]} 66. Kb5 {[%clk
0:00:07.7]} 66... Rc1 {[%clk 0:00:02.8]} 67. Kb4 {[%clk 0:00:08.2]} 67... f6
{[%clk 0:00:03]} 68. Re2+ {[%clk 0:00:09.1]} 68... Kf7 {[%clk 0:00:03.3]} 69.
Kb3 {[%clk 0:00:10]} 69... f5 {[%clk 0:00:03.2]} 70. Kb2 {[%clk 0:00:10.2]}
70... Rc7 {[%clk 0:00:03.4]} 71. Re5 {[%clk 0:00:09.5]} 71... Kf6 {[%clk
0:00:03.5]} 72. Re8 {[%clk 0:00:10]} 72... f4 {[%clk 0:00:03.7]} 73. Rf8+ {[%clk
0:00:09.8]} 73... Kg5 {[%clk 0:00:04.1]} 74. Kb1 {[%clk 0:00:08.9]} 74... Kg4
{[%clk 0:00:04.3]} 75. Rg8+ {[%clk 0:00:08.8]} 75... Kf3 {[%clk 0:00:04.5]} 76.
Rf8 {[%clk 0:00:09.7]} 76... Ke3 {[%clk 0:00:04.8]} 77. Re8+ {[%clk 0:00:09.9]}
77... Kf2 {[%clk 0:00:05.4]} 78. Rf8 {[%clk 0:00:09.5]} 78... f3 {[%clk
0:00:06]} 79. Kb2 {[%clk 0:00:08.2]} 79... Ke2 {[%clk 0:00:06.2]} 80. Re8+
{[%clk 0:00:08.5]} 80... Kf1 {[%clk 0:00:06.3]} 81. Rf8 {[%clk 0:00:05.9]} 81...
f2 {[%clk 0:00:06.7]} 82. Rf6 {[%clk 0:00:05.3]} 82... Rg7 {[%clk 0:00:06.8]}
83. Kc2 {[%clk 0:00:04.8]} 83... Kg2 {[%clk 0:00:07.2]} 0-1

[Event "Early-Titled-Tuesday-Blitz-April-02-2024"]
[Site "Chess.com"]
[Date "2024.04.02"]
[Round "2"]
[White "chess123456s"]
[Black "Yaacovn"]
[Result "0-1"]
[WhiteElo "2593"]
[BlackElo "2852"]
[TimeControl "180+1"]
[EndTime "8:20:15 PDT"]
[Termination "Yaacovn won by resignation"]

1. d4 {[%clk 0:03:00.9]} 1... Nf6 {[%clk 0:02:59.5]} 2. Nc3 {[%clk 0:03:00.7]}
2... d5 {[%clk 0:02:59]} 3. Bf4 {[%clk 0:03:01.2]} 3... c6 {[%clk 0:02:58.6]} 4.
e3 {[%clk 0:03:01.5]} 4... Qb6 {[%clk 0:02:58.4]} 5. Rb1 {[%clk 0:03:00]} 5...
Bf5 {[%clk 0:02:54.9]} 6. Bd3 {[%clk 0:02:59.9]} 6... Bg6 {[%clk 0:02:54.8]} 7.
Nf3 {[%clk 0:02:59.6]} 7... Nbd7 {[%clk 0:02:54.5]} 8. O-O {[%clk 0:02:59.3]}
8... e6 {[%clk 0:02:54.4]} 9. Qe2 {[%clk 0:02:59.3]} 9... Be7 {[%clk 0:02:48.2]}
10. e4 {[%clk 0:02:58.7]} 10... O-O {[%clk 0:02:43]} 11. e5 {[%clk 0:02:56.6]}
11... Ne8 {[%clk 0:02:39.9]} 12. Bxg6 {[%clk 0:02:55.8]} 12... fxg6 {[%clk
0:02:39.6]} 13. Be3 {[%clk 0:02:54.9]} 13... a6 {[%clk 0:02:36.5]} 14. h4 {[%clk
0:02:53.3]} 14... c5 {[%clk 0:02:30.3]} 15. Na4 {[%clk 0:02:46.4]} 15... Qb5
{[%clk 0:02:27.8]} 16. Qxb5 {[%clk 0:02:41.2]} 16... axb5 {[%clk 0:02:28.7]} 17.
Nxc5 {[%clk 0:02:41.7]} 17... Bxc5 {[%clk 0:02:26.3]} 18. dxc5 {[%clk
0:02:42.6]} 18... Rxa2 {[%clk 0:02:26]} 19. Nd4 {[%clk 0:02:24.7]} 19... Nc7
{[%clk 0:02:24.3]} 20. f4 {[%clk 0:02:10.9]} 20... Nxc5 {[%clk 0:02:20.7]} 21.
Nxb5 {[%clk 0:02:07.3]} 21... Nxb5 {[%clk 0:02:20.5]} 22. Bxc5 {[%clk
0:02:07.3]} 22... Rc8 {[%clk 0:02:20.8]} 23. b4 {[%clk 0:01:46]} 23... Nc3
{[%clk 0:02:08.7]} 24. Ra1 {[%clk 0:01:40.1]} 24... Rca8 {[%clk 0:02:06.1]} 25.
Rxa2 {[%clk 0:01:29.7]} 25... Rxa2 {[%clk 0:02:07]} 26. Rf2 {[%clk 0:01:27.6]}
26... Ne4 {[%clk 0:02:03.9]} 27. Re2 {[%clk 0:01:25.7]} 27... h5 {[%clk
0:02:00.2]} 28. Kh2 {[%clk 0:01:15.9]} 28... Kh7 {[%clk 0:01:52.7]} 29. Be7
{[%clk 0:01:11.7]} 29... b5 {[%clk 0:01:48.4]} 30. Bd6 {[%clk 0:00:55.2]} 30...
Kg8 {[%clk 0:01:48.1]} 31. Be7 {[%clk 0:00:54.5]} 31... Kf7 {[%clk 0:01:48]} 32.
Bd6 {[%clk 0:00:54.5]} 32... Ke8 {[%clk 0:01:48.4]} 33. Bc5 {[%clk 0:00:51.6]}
33... Ra4 {[%clk 0:01:42]} 34. Re3 {[%clk 0:00:49.1]} 34... Ra2 {[%clk
0:01:41.4]} 35. c3 {[%clk 0:00:44.4]} 35... Kf7 {[%clk 0:01:32.7]} 36. Bd4
{[%clk 0:00:43.5]} 36... Nd2 {[%clk 0:01:31.6]} 37. Kh3 {[%clk 0:00:37.4]} 37...
Ra1 {[%clk 0:01:29]} 38. g3 {[%clk 0:00:17.8]} 38... Ne4 {[%clk 0:01:25.6]} 39.
Re2 {[%clk 0:00:15.1]} 39... Ra6 {[%clk 0:01:23.1]} 40. Rc2 {[%clk 0:00:13.8]}
40... Ke8 {[%clk 0:01:21.1]} 41. Kg2 {[%clk 0:00:14.2]} 41... Kd7 {[%clk
0:01:21]} 42. Kf3 {[%clk 0:00:14.7]} 42... Ra4 {[%clk 0:01:18.7]} 43. g4 {[%clk
0:00:14.3]} 43... Ke8 {[%clk 0:01:18.7]} 44. gxh5 {[%clk 0:00:14.4]} 44... gxh5
{[%clk 0:01:19.4]} 45. Rg2 {[%clk 0:00:14.4]} 45... Kf7 {[%clk 0:01:19.4]} 46.
f5 {[%clk 0:00:14.7]} 46... exf5 {[%clk 0:01:19.2]} 47. e6+ {[%clk 0:00:15.4]}
47... Kxe6 {[%clk 0:01:19.4]} 48. Rxg7 {[%clk 0:00:16.1]} 48... Ra1 {[%clk
0:01:17.2]} 49. Rg6+ {[%clk 0:00:16.3]} 49... Kf7 {[%clk 0:01:17]} 50. Rg7+
{[%clk 0:00:16.7]} 50... Ke6 {[%clk 0:01:15.1]} 51. Rg6+ {[%clk 0:00:16.6]}
51... Ke7 {[%clk 0:01:15.6]} 52. Rb6 {[%clk 0:00:15.3]} 52... Rf1+ {[%clk
0:01:14.9]} 53. Kg2 {[%clk 0:00:15.5]} 53... Rf4 {[%clk 0:00:59.5]} 54. Rxb5
{[%clk 0:00:15.1]} 54... Rxh4 {[%clk 0:00:58]} 55. Rxd5 {[%clk 0:00:14.9]} 55...
Rg4+ {[%clk 0:00:57.6]} 56. Kf3 {[%clk 0:00:14.3]} 56... Ng5+ {[%clk 0:00:56.9]}
57. Kf2 {[%clk 0:00:11.8]} 57... f4 {[%clk 0:00:57.1]} 58. b5 {[%clk 0:00:10.2]}
58... f3 {[%clk 0:00:50.5]} 59. b6 {[%clk 0:00:10]} 59... Rg2+ {[%clk
0:00:50.7]} 60. Kf1 {[%clk 0:00:10.2]} 60... Nh3 {[%clk 0:00:48.5]} 61. b7
{[%clk 0:00:05.6]} 61... Rb2 {[%clk 0:00:46.9]} 62. Re5+ {[%clk 0:00:04.5]}
62... Kd7 {[%clk 0:00:41.3]} 63. Re3 {[%clk 0:00:03.5]} 63... Rb1+ {[%clk
0:00:40.6]} 64. Re1 {[%clk 0:00:03.9]} 64... Rxb7 {[%clk 0:00:41.1]} 65. Re3
{[%clk 0:00:04]} 65... Rb1+ {[%clk 0:00:41.3]} 66. Re1 {[%clk 0:00:04.5]} 66...
Rb8 {[%clk 0:00:25.9]} 67. Re3 {[%clk 0:00:04.6]} 67... Rf8 {[%clk 0:00:26.2]}
68. c4 {[%clk 0:00:04.4]} 68... Kc6 {[%clk 0:00:24]} 69. Re6+ {[%clk 0:00:04]}
69... Kd7 {[%clk 0:00:23.8]} 70. Rh6 {[%clk 0:00:04.7]} 70... Ra8 {[%clk
0:00:18.8]} 71. Rh7+ {[%clk 0:00:04.9]} 71... Ke6 {[%clk 0:00:18.6]} 72. Ra7
{[%clk 0:00:03.4]} 72... Rd8 {[%clk 0:00:18.3]} 73. Bc3 {[%clk 0:00:01.4]} 73...
Rd3 {[%clk 0:00:17.1]} 74. Be1 {[%clk 0:00:01.4]} 74... Rd1 {[%clk 0:00:17]} 75.
Ra6+ {[%clk 0:00:02]} 75... Kd7 {[%clk 0:00:16.2]} 76. Ra7+ {[%clk 0:00:01.9]}
76... Kd6 {[%clk 0:00:15.4]} 77. Ra6+ {[%clk 0:00:02.1]} 77... Kc5 {[%clk
0:00:13]} 78. Rf6 {[%clk 0:00:02.2]} 78... f2 {[%clk 0:00:12.6]} 79. Rxf2 {[%clk
0:00:02.7]} 79... Nxf2 {[%clk 0:00:13]} 80. Kxf2 {[%clk 0:00:03.4]} 80... Kxc4
{[%clk 0:00:13.5]} 81. Ba5 {[%clk 0:00:03.6]} 81... Rd5 {[%clk 0:00:12.7]} 82.
Bc7 {[%clk 0:00:02.9]} 82... Kd4 {[%clk 0:00:12.9]} 83. Kg3 {[%clk 0:00:03.2]}
83... Ke4 {[%clk 0:00:12.6]} 84. Kh2 {[%clk 0:00:03.4]} 84... Rf5 {[%clk
0:00:12.6]} 85. Bb6 {[%clk 0:00:03.8]} 85... Kf3 {[%clk 0:00:12.9]} 86. Bd4
{[%clk 0:00:03.4]} 86... Kg4 {[%clk 0:00:13.3]} 87. Bb6 {[%clk 0:00:03.3]} 87...
Rd5 {[%clk 0:00:14.2]} 88. Ba7 {[%clk 0:00:03.4]} 88... Rd2+ {[%clk 0:00:13.9]}
89. Kh1 {[%clk 0:00:03.9]} 89... Ra2 {[%clk 0:00:14.8]} 90. Bb8 {[%clk
0:00:04.2]} 90... Kh3 {[%clk 0:00:14.7]} 91. Be5 {[%clk 0:00:01.8]} 91... Re2
{[%clk 0:00:14.1]} 92. Bd4 {[%clk 0:00:02.1]} 92... Rh2+ {[%clk 0:00:12.5]} 93.
Kg1 {[%clk 0:00:02.3]} 93... Rd2 {[%clk 0:00:13.4]} 94. Bc5 {[%clk 0:00:02.7]}
94... Rd1+ {[%clk 0:00:13.5]} 95. Kf2 {[%clk 0:00:03.2]} 95... Kh2 {[%clk
0:00:13]} 96. Bd6+ {[%clk 0:00:03.4]} 96... Kh1 {[%clk 0:00:13]} 97. Kg3 {[%clk
0:00:03.5]} 97... Rxd6 {[%clk 0:00:12.8]} 0-1

[Event "Early-Titled-Tuesday-Blitz-April-02-2024"]
[Site "Chess.com"]
[Date "2024.04.02"]
[Round "3"]
[White "secrethawk1"]
[Black "B_nn_t"]
[Result "1-0"]
[WhiteElo "2415"]
[BlackElo "2217"]
[TimeControl "180+1"]
[EndTime "8:22:41 PDT"]
[Termination "secrethawk1 won by resignation"]

1. d4 {[%clk 0:02:59.8]} 1... Nf6 {[%clk 0:02:56.5]} 2. Bf4 {[%clk 0:02:59.6]}
2... d5 {[%clk 0:02:54.7]} 3. e3 {[%clk 0:02:59.9]} 3... c5 {[%clk 0:02:54.8]}
4. c3 {[%clk 0:03:00.1]} 4... Nc6 {[%clk 0:02:54.5]} 5. Nf3 {[%clk 0:02:59.8]}
5... Qb6 {[%clk 0:02:54.1]} 6. Qc2 {[%clk 0:02:58.7]} 6... Bf5 {[%clk
0:02:49.6]} 7. dxc5 {[%clk 0:02:58]} 7... Bxc2 {[%clk 0:02:47]} 8. cxb6 {[%clk
0:02:57.6]} 8... axb6 {[%clk 0:02:47.7]} 9. Na3 {[%clk 0:02:57.3]} 9... Rxa3
{[%clk 0:02:41.9]} 10. bxa3 {[%clk 0:02:55.5]} 10... e6 {[%clk 0:02:42.2]} 11.
Bb5 {[%clk 0:02:40.5]} 11... Bxa3 {[%clk 0:02:39.1]} 12. Nd4 {[%clk 0:02:31.5]}
12... Bg6 {[%clk 0:02:25.2]} 13. Rd1 {[%clk 0:02:29.4]} 13... Kd7 {[%clk
0:02:17.3]} 14. O-O {[%clk 0:02:24.9]} 14... e5 {[%clk 0:02:17.6]} 15. Bxe5
{[%clk 0:02:23.9]} 1-0

[Event "Early-Titled-Tuesday-Blitz-April-02-2024"]
[Site "Chess.com"]
[Date "2024.04.02"]
[Round "3"]
[White "Blackwhite017"]
[Black "atalz0"]
[Result "0-1"]
[WhiteElo "2078"]
[BlackElo "2369"]
[TimeControl "180+1"]
[EndTime "8:22:56 PDT"]
[Termination "atalz0 won by resignation"]

1. e4 {[%clk 0:02:58.9]} 1... d5 {[%clk 0:03:00.1]} 2. exd5 {[%clk 0:02:54.9]}
2... Nf6 {[%clk 0:03:00.4]} 3. Bb5+ {[%clk 0:02:54]} 3... Bd7 {[%clk 0:03:00]}
4. Be2 {[%clk 0:02:54.9]} 4... Nxd5 {[%clk 0:02:59.8]} 5. Nf3 {[%clk 0:02:55.2]}
5... Nf4 {[%clk 0:02:55.8]} 6. Bc4 {[%clk 0:02:54.2]} 6... Nxg2+ {[%clk
0:02:35.1]} 7. Kf1 {[%clk 0:02:54.3]} 7... Nf4 {[%clk 0:02:33.6]} 8. Ne5 {[%clk
0:02:35]} 8... Bh3+ {[%clk 0:02:03.2]} 9. Kg1 {[%clk 0:02:33.9]} 9... e6 {[%clk
0:02:02.8]} 10. Qf3 {[%clk 0:02:33.5]} 10... Qg5+ {[%clk 0:01:59]} 11. Qg3
{[%clk 0:02:23.8]} 11... Qxe5 {[%clk 0:01:58.4]} 0-1

[Event "Early-Titled-Tuesday-Blitz-April-02-2024"]
[Site "Chess.com"]
[Date "2024.04.02"]
[Round "3"]
[White "zverr1"]
[Black "elcala"]
[Result "1-0"]
[WhiteElo "2552"]
[BlackElo "1836"]
[TimeControl "180+1"]
[EndTime "8:23:28 PDT"]
[Termination "zverr1 won by resignation"]

1. e4 {[%clk 0:03:00.9]} 1... d5 {[%clk 0:02:59.8]} 2. exd5 {[%clk 0:03:01.8]}
2... Qxd5 {[%clk 0:02:59.9]} 3. Nc3 {[%clk 0:03:01.7]} 3... Qd6 {[%clk
0:03:00.3]} 4. d4 {[%clk 0:03:01.5]} 4... Nf6 {[%clk 0:03:00.6]} 5. Nf3 {[%clk
0:03:01.6]} 5... Bg4 {[%clk 0:02:59.4]} 6. g3 {[%clk 0:03:00.1]} 6... a6 {[%clk
0:02:57.3]} 7. Bg2 {[%clk 0:02:56]} 7... Nc6 {[%clk 0:02:57]} 8. Bf4 {[%clk
0:02:48.7]} 8... Qd7 {[%clk 0:02:53.5]} 9. h3 {[%clk 0:02:35.5]} 9... Bh5 {[%clk
0:02:51.1]} 10. g4 {[%clk 0:02:10.5]} 10... Bg6 {[%clk 0:02:48.7]} 11. d5 {[%clk
0:02:10.8]} 11... Nb4 {[%clk 0:02:40.3]} 12. Ne5 {[%clk 0:02:10.8]} 12... Qd6
{[%clk 0:01:52.5]} 13. Nxg6 {[%clk 0:02:05.5]} 1-0

[Event "Early-Titled-Tuesday-Blitz-April-02-2024"]
[Site "Chess.com"]
[Date "2024.04.02"]
[Round "3"]
[White "Mazarini41"]
[Black "rhwr"]
[Result "0-1"]
[WhiteElo "2472"]
[BlackElo "2263"]
[TimeControl "180+1"]
[EndTime "8:23:53 PDT"]
[Termination "rhwr won by resignation"]

1. e4 {[%clk 0:03:00.9]} 1... c5 {[%clk 0:03:00.1]} 2. Nf3 {[%clk 0:03:00.3]}
2... d6 {[%clk 0:03:00.5]} 3. d4 {[%clk 0:03:00.3]} 3... cxd4 {[%clk 0:03:01.4]}
4. Nxd4 {[%clk 0:03:00.6]} 4... Nf6 {[%clk 0:03:02]} 5. Nc3 {[%clk 0:02:59.4]}
5... a6 {[%clk 0:03:02.2]} 6. f3 {[%clk 0:02:57.6]} 6... e5 {[%clk 0:03:02.1]}
7. Nb3 {[%clk 0:02:55.7]} 7... Be6 {[%clk 0:03:02.7]} 8. Be3 {[%clk 0:02:54.4]}
8... Be7 {[%clk 0:03:03]} 9. Qd2 {[%clk 0:02:54.5]} 9... O-O {[%clk 0:03:03.9]}
10. O-O-O {[%clk 0:02:53.5]} 10... b5 {[%clk 0:02:58.1]} 11. g4 {[%clk 0:02:49]}
11... Nbd7 {[%clk 0:02:44.4]} 12. h4 {[%clk 0:02:44.3]} 12... b4 {[%clk
0:02:42.9]} 13. Nd5 {[%clk 0:02:43.9]} 13... Bxd5 {[%clk 0:02:42.7]} 14. exd5
{[%clk 0:02:43]} 14... a5 {[%clk 0:02:40.8]} 15. h5 {[%clk 0:02:39.1]} 15... Ne8
{[%clk 0:02:35.8]} 16. g5 {[%clk 0:02:37.3]} 16... f5 {[%clk 0:02:32.1]} 17.
gxf6 {[%clk 0:02:30.6]} 17... Ndxf6 {[%clk 0:02:26.7]} 18. h6 {[%clk 0:02:30.1]}
18... g6 {[%clk 0:02:26.2]} 19. f4 {[%clk 0:02:23.8]} 19... exf4 {[%clk
0:02:23.9]} 20. Bxf4 {[%clk 0:02:18.8]} 20... Ne4 {[%clk 0:02:19.3]} 21. Qh2
{[%clk 0:02:10.8]} 21... Rxf4 {[%clk 0:02:18.9]} 22. Qxf4 {[%clk 0:02:10.2]}
22... Bg5 {[%clk 0:02:18.8]} 23. Qxg5 {[%clk 0:02:06.3]} 23... Qxg5+ {[%clk
0:02:18.5]} 24. Kb1 {[%clk 0:02:04.7]} 24... Nf2 {[%clk 0:02:18.2]} 25. Bb5
{[%clk 0:01:51.9]} 25... Nxh1 {[%clk 0:02:12.9]} 26. Rxh1 {[%clk 0:01:52.8]}
26... Qxd5 {[%clk 0:02:13.4]} 27. Re1 {[%clk 0:01:49]} 27... Qxb5 {[%clk
0:02:13]} 0-1

[Event "Early-Titled-Tuesday-Blitz-April-02-2024"]
[Site "Chess.com"]
[Date "2024.04.02"]
[Round "3"]
[White "nikitakhoroshev"]
[Black "tk22h"]
[Result "1-0"]
[WhiteElo "2592"]
[BlackElo "2407"]
[TimeControl "180+1"]
[EndTime "8:24:24 PDT"]
[Termination "nikitakhoroshev won by resignation"]

1. e4 {[%clk 0:03:00.4]} 1... e5 {[%clk 0:02:59.6]} 2. Nf3 {[%clk 0:02:59.2]}
2... Nc6 {[%clk 0:02:58.8]} 3. Bc4 {[%clk 0:02:59]} 3... Nf6 {[%clk 0:02:58.2]}
4. Ng5 {[%clk 0:02:58.6]} 4... d5 {[%clk 0:02:58.3]} 5. exd5 {[%clk 0:02:58.8]}
5... Na5 {[%clk 0:02:58.9]} 6. Bb5+ {[%clk 0:02:58.7]} 6... Bd7 {[%clk
0:02:59.4]} 7. Qe2 {[%clk 0:02:56.1]} 7... Be7 {[%clk 0:02:58.9]} 8. Nc3 {[%clk
0:02:35.3]} 8... O-O {[%clk 0:02:57]} 9. Bxd7 {[%clk 0:02:31.7]} 9... Qxd7
{[%clk 0:02:56.6]} 10. O-O {[%clk 0:02:30.3]} 10... Nxd5 {[%clk 0:02:55.1]} 11.
Qxe5 {[%clk 0:02:22.5]} 11... Nxc3 {[%clk 0:02:51.7]} 12. Qxc3 {[%clk
0:02:18.2]} 12... Nc6 {[%clk 0:02:48.4]} 13. Nf3 {[%clk 0:02:18.1]} 13... Bf6
{[%clk 0:02:48.4]} 14. Qc4 {[%clk 0:02:14.6]} 14... Rfe8 {[%clk 0:02:45.1]} 15.
c3 {[%clk 0:02:14.1]} 15... Rad8 {[%clk 0:02:43.5]} 16. d4 {[%clk 0:02:13.7]}
16... Qg4 {[%clk 0:02:43.2]} 17. h3 {[%clk 0:02:12.3]} 17... Qh5 {[%clk
0:02:43.2]} 18. Bf4 {[%clk 0:02:09.6]} 18... Rd7 {[%clk 0:02:39.4]} 19. Rfe1
{[%clk 0:02:08.4]} 19... Red8 {[%clk 0:02:39.3]} 20. Re3 {[%clk 0:02:04.8]}
20... h6 {[%clk 0:02:38]} 21. Rae1 {[%clk 0:02:02.9]} 21... Qf5 {[%clk
0:02:37.7]} 22. Re8+ {[%clk 0:02:00.9]} 22... Rxe8 {[%clk 0:02:37.1]} 23. Rxe8+
{[%clk 0:02:00.6]} 23... Kh7 {[%clk 0:02:37.3]} 24. Bg3 {[%clk 0:01:51.4]} 24...
Qb1+ {[%clk 0:02:27.4]} 25. Kh2 {[%clk 0:01:51.2]} 25... Qxb2 {[%clk 0:02:25.4]}
26. d5 {[%clk 0:01:42]} 26... Ne7 {[%clk 0:02:17.7]} 27. Qe4+ {[%clk 0:01:36.7]}
27... Ng6 {[%clk 0:02:15.6]} 28. h4 {[%clk 0:01:34]} 28... h5 {[%clk 0:02:12.9]}
29. Qf5 {[%clk 0:01:31.7]} 1-0

[Event "Early-Titled-Tuesday-Blitz-April-02-2024"]
[Site "Chess.com"]
[Date "2024.04.02"]
[Round "3"]
[White "biostatistician"]
[Black "eagleclaw07"]
[Result "0-1"]
[WhiteElo "2537"]
[BlackElo "2849"]
[TimeControl "180+1"]
[EndTime "8:24:32 PDT"]
[Termination "eagleclaw07 won by resignation"]

1. d4 {[%clk 0:02:59.7]} 1... f5 {[%clk 0:02:57.9]} 2. Nf3 {[%clk 0:03:00.6]}
2... Nf6 {[%clk 0:02:58.3]} 3. g3 {[%clk 0:03:01.1]} 3... g6 {[%clk 0:02:58.9]}
4. Bg2 {[%clk 0:03:02]} 4... Bg7 {[%clk 0:02:59.6]} 5. O-O {[%clk 0:03:02.7]}
5... O-O {[%clk 0:03:00.4]} 6. b4 {[%clk 0:03:02.8]} 6... d6 {[%clk 0:03:01.1]}
7. Bb2 {[%clk 0:03:02.3]} 7... c6 {[%clk 0:03:00.7]} 8. c4 {[%clk 0:03:02.5]}
8... a5 {[%clk 0:02:56.3]} 9. a3 {[%clk 0:03:02.4]} 9... axb4 {[%clk 0:02:54.7]}
10. axb4 {[%clk 0:03:03.3]} 10... Rxa1 {[%clk 0:02:55]} 11. Bxa1 {[%clk
0:03:04.2]} 11... Na6 {[%clk 0:02:55.3]} 12. Qb3 {[%clk 0:03:03.7]} 12... Kh8
{[%clk 0:02:55]} 13. d5 {[%clk 0:03:01.2]} 13... cxd5 {[%clk 0:02:54.2]} 14.
cxd5 {[%clk 0:03:02.1]} 14... Qb6 {[%clk 0:02:47.8]} 15. Bc3 {[%clk 0:02:41.6]}
15... Bd7 {[%clk 0:02:47]} 16. Nbd2 {[%clk 0:02:41.1]} 16... Rc8 {[%clk
0:02:45.8]} 17. Rb1 {[%clk 0:02:34.9]} 17... h6 {[%clk 0:02:30]} 18. Nd4 {[%clk
0:01:56.4]} 18... Nxd5 {[%clk 0:02:04.8]} 19. Nc4 {[%clk 0:01:21.3]} 19... Rxc4
{[%clk 0:01:55.8]} 20. Qxc4 {[%clk 0:01:15.8]} 20... Nxc3 {[%clk 0:01:56.1]} 21.
Qxc3 {[%clk 0:01:14.5]} 21... Bxd4 {[%clk 0:01:54.5]} 0-1